[Event "Titled Tuesday Blitz December 7 2021"]
[White "Koutlas, Nikolaos"]
[Black "Zhigalko, Sergei"]
[WhiteFideId "25827138"]
[BlackFideId "13502956"]
[WhiteElo "1525"]
[BlackElo "2662"]
[Result "1-0"]
[Round "06"]
[TimeControl "180+1"]
[Date "2021.12.07"]
[WhiteClock "0:00:07"]
[BlackClock "0:00:05"]

1. e4 {[%clk 0:02:56]}  c5 {[%clk 0:03:00]} 2. Nf3 {[%clk 0:02:54]}  Nc6 {[%clk 0:03:00]} 3. d4 {[%clk 0:02:53]}  cxd4 {[%clk 0:03:01]} 4. Nxd4 {[%clk 0:02:54]}  Nf6 {[%clk 0:03:02]} 5. Nc3 {[%clk 0:02:50]}  e5 {[%clk 0:03:02]} 6. Ndb5 {[%clk 0:02:50]}  d6 {[%clk 0:03:02]} 7. Bg5 {[%clk 0:02:47]}  a6 {[%clk 0:03:02]} 8. Na3 {[%clk 0:02:48]}  b5 {[%clk 0:03:03]} 9. Nd5 {[%clk 0:02:48]}  Be7 {[%clk 0:03:03]} 10. Bxf6 {[%clk 0:02:48]}  Bxf6 {[%clk 0:03:03]} 11. c4 {[%clk 0:02:47]}  b4 {[%clk 0:03:03]} 12. Nc2 {[%clk 0:02:47]}  O-O {[%clk 0:03:03]} 13. Nce3 {[%clk 0:02:40]}  Bg5 {[%clk 0:03:01]} 14. Nf5 {[%clk 0:02:33]}  g6 {[%clk 0:02:49]} 15. h4 {[%clk 0:02:33]}  Bf4 {[%clk 0:02:40]} 16. g3 {[%clk 0:01:58]}  gxf5 {[%clk 0:02:39]} 17. gxf4 {[%clk 0:01:58]}  Kh8 {[%clk 0:02:30]} 18. fxe5 {[%clk 0:01:52]}  dxe5 {[%clk 0:02:29]} 19. Qh5 {[%clk 0:01:42]}  Nd4 {[%clk 0:02:12]} 20. O-O-O {[%clk 0:01:35]}  Be6 {[%clk 0:02:11]} 21. Bh3 {[%clk 0:01:20]}  Bxd5 {[%clk 0:01:48]} 22. Rxd4 {[%clk 0:01:20]}  exd4 {[%clk 0:00:38]} 23. Bxf5 {[%clk 0:01:18]}  Kg7 {[%clk 0:00:38]} 24. cxd5 {[%clk 0:00:08]}  Rg8 {[%clk 0:00:10]} 25. Qxh7+ {[%clk 0:00:04]}  Kf8 {[%clk 0:00:09]} 26. Qh6+ {[%clk 0:00:04]}  Ke8 {[%clk 0:00:02]} 27. Kb1 {[%clk 0:00:04]}  Rb8 {[%clk 0:00:01]} 28. Rc1 {[%clk 0:00:04]}  Rb6 {[%clk 0:00:01]} 29. Qh5 {[%clk 0:00:03]}  Qd6 {[%clk 0:00:01]} 30. Rc8+ {[%clk 0:00:02]}  Ke7 {[%clk 0:00:02]} 31. Rxg8 {[%clk 0:00:02]}  b3 {[%clk 0:00:02]} 32. Qg5+ {[%clk 0:00:02]}  Qf6 {[%clk 0:00:03]} 33. Qxf6+ {[%clk 0:00:02]}  Kxf6 {[%clk 0:00:04]} 34. axb3 {[%clk 0:00:02]}  Rxb3 {[%clk 0:00:05]} 35. Kc2 {[%clk 0:00:03]}  Rb8 {[%clk 0:00:05]} 36. h5 {[%clk 0:00:03]}  Rxg8 {[%clk 0:00:06]} 37. h6 {[%clk 0:00:04]}  Rb8 {[%clk 0:00:06]} 38. h7 {[%clk 0:00:05]}  Ke5 {[%clk 0:00:06]} 39. Kd3 {[%clk 0:00:05]}  a5 {[%clk 0:00:06]} 40. Kc4 {[%clk 0:00:04]}  d3 {[%clk 0:00:06]} 41. Kc3 {[%clk 0:00:04]}  Kf6 {[%clk 0:00:06]} 42. Kxd3 {[%clk 0:00:04]}  Kg7 {[%clk 0:00:07]} 43. Kc3 {[%clk 0:00:04]}  a4 {[%clk 0:00:08]} 44. d6 {[%clk 0:00:04]}  Rb3+ {[%clk 0:00:08]} 45. Kc4 {[%clk 0:00:04]}  Rxb2 {[%clk 0:00:08]} 46. d7 {[%clk 0:00:05]}  Rd2 {[%clk 0:00:09]} 47. Kb4 {[%clk 0:00:05]}  Rd4+ {[%clk 0:00:09]} 48. Ka3 {[%clk 0:00:06]}  f6 {[%clk 0:00:10]} 49. f4 {[%clk 0:00:05]}  Kh8 {[%clk 0:00:09]} 50. e5 {[%clk 0:00:06]}  fxe5 {[%clk 0:00:10]} 51. fxe5 {[%clk 0:00:06]}  Kg7 {[%clk 0:00:11]} 52. e6 {[%clk 0:00:07]}  Rxd7 {[%clk 0:00:05]} 53. exd7 {[%clk 0:00:07]} 1-0


[Site "https://www.chess.com"]

[Event "Titled Tuesday Blitz December 7 2021"]
[White "Le, Tuan Minh"]
[Black "Bloomer, Josh"]
[WhiteFideId "12401153"]
[BlackFideId "2020416"]
[WhiteElo "2450"]
[BlackElo "2437"]
[Result "1-0"]
[Round "06"]
[TimeControl "180+1"]
[Date "2021.12.07"]
[WhiteClock "0:02:57"]
[BlackClock "0:02:26"]

1. d4 {[%clk 0:03:00]}  Nf6 {[%clk 0:02:59]} 2. Nf3 {[%clk 0:03:00]}  g6 {[%clk 0:03:00]} 3. Bg5 {[%clk 0:02:59]}  Bg7 {[%clk 0:03:00]} 4. Nbd2 {[%clk 0:02:59]}  O-O {[%clk 0:03:00]} 5. c3 {[%clk 0:03:00]}  d6 {[%clk 0:02:59]} 6. e4 {[%clk 0:03:00]}  c5 {[%clk 0:03:00]} 7. dxc5 {[%clk 0:03:01]}  dxc5 {[%clk 0:03:00]} 8. Bc4 {[%clk 0:03:01]}  Nc6 {[%clk 0:03:00]} 9. O-O {[%clk 0:02:58]}  h6 {[%clk 0:03:00]} 10. Bxf6 {[%clk 0:02:58]}  Bxf6 {[%clk 0:02:57]} 11. Qe2 {[%clk 0:02:59]}  Qc7 {[%clk 0:02:56]} 12. Qe3 {[%clk 0:02:59]}  Ne5 {[%clk 0:02:29]} 13. Nxe5 {[%clk 0:02:58]}  Qxe5 {[%clk 0:02:30]} 14. Qxh6 {[%clk 0:02:58]}  Bg5 {[%clk 0:02:30]} 15. Qxg6+ {[%clk 0:02:57]}  Kh8 {[%clk 0:02:30]} 16. Qh5+ {[%clk 0:02:57]}  Kg7 {[%clk 0:02:26]} 17. Nf3 {[%clk 0:02:57]} 1-0


[Site "https://www.chess.com"]

[Event "Titled Tuesday Blitz December 7 2021"]
[White "Leiva, Gianmarco"]
[Black "Cvetanovic, Uros"]
[WhiteFideId "3804399"]
[BlackFideId "900672"]
[WhiteElo "2328"]
[BlackElo "2282"]
[Result "1-0"]
[Round "06"]
[TimeControl "180+1"]
[Date "2021.12.07"]
[WhiteClock "0:00:08"]
[BlackClock "0:00:08"]

1. e4 {[%clk 0:02:55]}  c5 {[%clk 0:02:59]} 2. Nf3 {[%clk 0:02:54]}  e6 {[%clk 0:02:59]} 3. g3 {[%clk 0:02:54]}  d5 {[%clk 0:02:53]} 4. exd5 {[%clk 0:02:53]}  exd5 {[%clk 0:02:53]} 5. d4 {[%clk 0:02:48]}  Nf6 {[%clk 0:02:52]} 6. Bg2 {[%clk 0:02:47]}  Qe7+ {[%clk 0:02:49]} 7. Kf1 {[%clk 0:02:34]}  Nc6 {[%clk 0:02:39]} 8. Nc3 {[%clk 0:02:33]}  Be6 {[%clk 0:02:18]} 9. Bf4 {[%clk 0:01:20]}  h6 {[%clk 0:02:10]} 10. Nb5 {[%clk 0:01:17]}  g5 {[%clk 0:01:27]} 11. Bd6 {[%clk 0:00:49]}  Qd7 {[%clk 0:01:25]} 12. Nc7+ {[%clk 0:00:36]}  Kd8 {[%clk 0:01:21]} 13. Bxf8 {[%clk 0:00:23]}  Kxc7 {[%clk 0:01:17]} 14. Bg7 {[%clk 0:00:24]}  Ne4 {[%clk 0:00:57]} 15. Bxh8 {[%clk 0:00:24]}  Rxh8 {[%clk 0:00:57]} 16. dxc5 {[%clk 0:00:24]}  Nxc5 {[%clk 0:00:56]} 17. Nd4 {[%clk 0:00:18]}  Bh3 {[%clk 0:00:51]} 18. Nxc6 {[%clk 0:00:16]}  bxc6 {[%clk 0:00:49]} 19. Qd4 {[%clk 0:00:15]}  Ne4 {[%clk 0:00:10]} 20. f3 {[%clk 0:00:04]}  Qf5 {[%clk 0:00:09]} 21. Kg1 {[%clk 0:00:02]}  Bxg2 {[%clk 0:00:09]} 22. Kxg2 {[%clk 0:00:03]}  Nf6 {[%clk 0:00:09]} 23. Qf2 {[%clk 0:00:02]}  Re8 {[%clk 0:00:08]} 24. Rhe1 {[%clk 0:00:03]}  Rb8 {[%clk 0:00:08]} 25. b3 {[%clk 0:00:02]}  Nd7 {[%clk 0:00:09]} 26. Qxa7+ {[%clk 0:00:03]}  Rb7 {[%clk 0:00:09]} 27. Qf2 {[%clk 0:00:03]}  Ne5 {[%clk 0:00:08]} 28. a4 {[%clk 0:00:03]}  f6 {[%clk 0:00:08]} 29. a5 {[%clk 0:00:04]}  h5 {[%clk 0:00:08]} 30. a6 {[%clk 0:00:04]}  Rb8 {[%clk 0:00:08]} 31. a7 {[%clk 0:00:04]}  Ra8 {[%clk 0:00:09]} 32. Rad1 {[%clk 0:00:04]}  h4 {[%clk 0:00:09]} 33. g4 {[%clk 0:00:04]}  Qf4 {[%clk 0:00:05]} 34. Rd4 {[%clk 0:00:04]}  Nxg4 {[%clk 0:00:04]} 35. fxg4 {[%clk 0:00:05]}  Qxf2+ {[%clk 0:00:04]} 36. Kxf2 {[%clk 0:00:04]}  Rxa7 {[%clk 0:00:05]} 37. Re7+ {[%clk 0:00:04]}  Kb6 {[%clk 0:00:06]} 38. Rb4+ {[%clk 0:00:04]}  Kc5 {[%clk 0:00:06]} 39. Rxa7 {[%clk 0:00:04]}  Kxb4 {[%clk 0:00:07]} 40. Ke2 {[%clk 0:00:04]}  Kc3 {[%clk 0:00:07]} 41. Kd1 {[%clk 0:00:05]}  Kd4 {[%clk 0:00:07]} 42. Rf7 {[%clk 0:00:05]}  Ke5 {[%clk 0:00:08]} 43. h3 {[%clk 0:00:03]}  c5 {[%clk 0:00:07]} 44. Kd2 {[%clk 0:00:03]}  Ke6 {[%clk 0:00:06]} 45. Rf8 {[%clk 0:00:04]}  Ke5 {[%clk 0:00:07]} 46. Kd3 {[%clk 0:00:04]}  Kf4 {[%clk 0:00:08]} 47. Rxf6+ {[%clk 0:00:04]}  Kg3 {[%clk 0:00:08]} 48. Rf5 {[%clk 0:00:04]}  c4+ {[%clk 0:00:08]} 49. bxc4 {[%clk 0:00:04]}  dxc4+ {[%clk 0:00:08]} 50. Ke3 {[%clk 0:00:05]}  Kxh3 {[%clk 0:00:09]} 51. Kf3 {[%clk 0:00:05]}  Kh2 {[%clk 0:00:08]} 52. Rxg5 {[%clk 0:00:06]}  Kg1 {[%clk 0:00:07]} 53. Rh5 {[%clk 0:00:07]}  Kf1 {[%clk 0:00:07]} 54. Rxh4 {[%clk 0:00:07]}  Ke1 {[%clk 0:00:08]} 55. Rh2 {[%clk 0:00:07]}  Kd1 {[%clk 0:00:08]} 56. c3 {[%clk 0:00:08]} 1-0


[Site "https://www.chess.com"]

[Event "Titled Tuesday Blitz December 7 2021"]
[White "Lin, Dachey"]
[Black "Horvath, Dominik"]
[WhiteFideId "2029650"]
[BlackFideId "1642561"]
[WhiteElo "2601"]
[BlackElo "2336"]
[Result "0-1"]
[Round "06"]
[TimeControl "180+1"]
[Date "2021.12.07"]
[WhiteClock "0:00:38"]
[BlackClock "0:00:56"]

1. Nc3 {[%clk 0:02:53]}  e5 {[%clk 0:02:48]} 2. e4 {[%clk 0:02:54]}  Nf6 {[%clk 0:02:48]} 3. f4 {[%clk 0:02:54]}  d5 {[%clk 0:02:48]} 4. fxe5 {[%clk 0:02:54]}  Nxe4 {[%clk 0:02:48]} 5. Qf3 {[%clk 0:02:55]}  Nc6 {[%clk 0:02:49]} 6. Bb5 {[%clk 0:02:54]}  Nxc3 {[%clk 0:02:27]} 7. dxc3 {[%clk 0:02:53]}  Qh4+ {[%clk 0:02:25]} 8. g3 {[%clk 0:02:53]}  Qe4+ {[%clk 0:02:26]} 9. Qxe4 {[%clk 0:02:35]}  dxe4 {[%clk 0:02:27]} 10. Ne2 {[%clk 0:02:31]}  Bd7 {[%clk 0:02:25]} 11. Bxc6 {[%clk 0:02:25]}  Bxc6 {[%clk 0:02:22]} 12. Be3 {[%clk 0:02:24]}  g6 {[%clk 0:02:19]} 13. O-O-O {[%clk 0:02:20]}  Bg7 {[%clk 0:02:16]} 14. Bd4 {[%clk 0:02:19]}  O-O {[%clk 0:02:09]} 15. e6 {[%clk 0:02:06]}  f5 {[%clk 0:01:43]} 16. Bxg7 {[%clk 0:01:55]}  Kxg7 {[%clk 0:01:44]} 17. Nd4 {[%clk 0:01:55]}  Be8 {[%clk 0:01:16]} 18. Rhf1 {[%clk 0:01:41]}  Kf6 {[%clk 0:01:07]} 19. b4 {[%clk 0:00:59]}  Ke7 {[%clk 0:01:02]} 20. c4 {[%clk 0:00:50]}  a5 {[%clk 0:00:59]} 21. a3 {[%clk 0:00:49]}  axb4 {[%clk 0:00:59]} 22. axb4 {[%clk 0:00:50]}  Ra4 {[%clk 0:01:00]} 23. c3 {[%clk 0:00:47]}  Ra2 {[%clk 0:01:00]} 24. Nc2 {[%clk 0:00:40]}  Kxe6 {[%clk 0:00:58]} 25. Rd8 {[%clk 0:00:40]}  Ke7 {[%clk 0:00:59]} 26. Rc8 {[%clk 0:00:38]}  Rxc2+ {[%clk 0:00:56]} 0-1


[Site "https://www.chess.com"]

[Event "Titled Tuesday Blitz December 7 2021"]
[White "Macovei, Andrei"]
[Black "Babazada, Khazar"]
[WhiteFideId "13904680"]
[BlackFideId "13413554"]
[WhiteElo "2410"]
[BlackElo "2302"]
[Result "0-1"]
[Round "06"]
[TimeControl "180+1"]
[Date "2021.12.07"]
[WhiteClock "0:00:01"]
[BlackClock "0:00:44"]

1. e4 {[%clk 0:03:00]}  Nf6 {[%clk 0:02:59]} 2. e5 {[%clk 0:03:00]}  Nd5 {[%clk 0:02:59]} 3. d4 {[%clk 0:03:01]}  Nb6 {[%clk 0:02:59]} 4. c4 {[%clk 0:03:02]}  d6 {[%clk 0:02:57]} 5. exd6 {[%clk 0:03:01]}  cxd6 {[%clk 0:02:58]} 6. Nf3 {[%clk 0:03:01]}  g6 {[%clk 0:02:58]} 7. h3 {[%clk 0:03:01]}  Bg7 {[%clk 0:02:55]} 8. Be2 {[%clk 0:03:02]}  O-O {[%clk 0:02:54]} 9. O-O {[%clk 0:03:02]}  Bf5 {[%clk 0:02:52]} 10. Nc3 {[%clk 0:03:03]}  Nc6 {[%clk 0:02:51]} 11. Bg5 {[%clk 0:03:03]}  d5 {[%clk 0:02:50]} 12. c5 {[%clk 0:03:03]}  Nc8 {[%clk 0:02:49]} 13. Qd2 {[%clk 0:03:01]}  Be4 {[%clk 0:02:43]} 14. Bh6 {[%clk 0:02:39]}  Bxf3 {[%clk 0:02:37]} 15. Bxf3 {[%clk 0:02:31]}  e6 {[%clk 0:02:32]} 16. Bxg7 {[%clk 0:02:25]}  Kxg7 {[%clk 0:02:31]} 17. b4 {[%clk 0:02:25]}  a6 {[%clk 0:02:29]} 18. Rab1 {[%clk 0:02:23]}  Qf6 {[%clk 0:02:29]} 19. Rfd1 {[%clk 0:02:21]}  N8e7 {[%clk 0:02:30]} 20. Ne2 {[%clk 0:02:17]}  Nf5 {[%clk 0:02:28]} 21. Bg4 {[%clk 0:02:16]}  Nfe7 {[%clk 0:02:23]} 22. Qf4 {[%clk 0:02:13]}  h5 {[%clk 0:02:15]} 23. Qxf6+ {[%clk 0:02:11]}  Kxf6 {[%clk 0:02:16]} 24. Bf3 {[%clk 0:02:11]}  Rfb8 {[%clk 0:02:16]} 25. h4 {[%clk 0:02:09]}  b6 {[%clk 0:02:16]} 26. g3 {[%clk 0:01:58]}  Nf5 {[%clk 0:02:11]} 27. a3 {[%clk 0:01:54]}  Rb7 {[%clk 0:02:02]} 28. Bg2 {[%clk 0:01:53]}  Rab8 {[%clk 0:02:02]} 29. Bh3 {[%clk 0:01:53]}  bxc5 {[%clk 0:01:58]} 30. dxc5 {[%clk 0:01:54]}  a5 {[%clk 0:01:57]} 31. Bxf5 {[%clk 0:01:40]}  gxf5 {[%clk 0:01:58]} 32. Nd4 {[%clk 0:01:37]}  Nxd4 {[%clk 0:01:51]} 33. Rxd4 {[%clk 0:01:36]}  Ke5 {[%clk 0:01:45]} 34. Rf4 {[%clk 0:01:32]}  d4 {[%clk 0:01:25]} 35. c6 {[%clk 0:01:25]}  Rc7 {[%clk 0:01:22]} 36. b5 {[%clk 0:01:23]}  Kd5 {[%clk 0:01:22]} 37. Rd1 {[%clk 0:01:02]}  e5 {[%clk 0:01:21]} 38. Rxf5 {[%clk 0:00:57]}  Rxb5 {[%clk 0:01:22]} 39. f4 {[%clk 0:00:55]}  Ke4 {[%clk 0:01:14]} 40. Rxh5 {[%clk 0:00:52]}  Rxc6 {[%clk 0:01:08]} 41. Kg2 {[%clk 0:00:35]}  Rc2+ {[%clk 0:01:05]} 42. Kh3 {[%clk 0:00:35]}  d3 {[%clk 0:00:55]} 43. Rxe5+ {[%clk 0:00:17]}  Rxe5 {[%clk 0:00:54]} 44. Re1+ {[%clk 0:00:17]}  Kf3 {[%clk 0:00:53]} 45. Rxe5 {[%clk 0:00:18]}  d2 {[%clk 0:00:54]} 46. Rd5 {[%clk 0:00:18]}  Ke2 {[%clk 0:00:54]} 47. h5 {[%clk 0:00:15]}  Rc5 {[%clk 0:00:51]} 48. Rxc5 {[%clk 0:00:13]}  d1=Q {[%clk 0:00:51]} 49. Kg4 {[%clk 0:00:07]}  f6 {[%clk 0:00:49]} 50. Kf5 {[%clk 0:00:06]}  Kf2 {[%clk 0:00:47]} 51. g4 {[%clk 0:00:03]}  Kg3 {[%clk 0:00:45]} 52. Rc3+ {[%clk 0:00:01]}  Kh4 {[%clk 0:00:44]} 0-1


[Site "https://www.chess.com"]

[Event "Titled Tuesday Blitz December 7 2021"]
[White "Maksimenko, Viktor"]
[Black "Ozdemir, Serhan Berat"]
[WhiteFideId "13710478"]
[BlackFideId "6374611"]
[WhiteElo "2269"]
[BlackElo "1920"]
[Result "1-0"]
[Round "06"]
[TimeControl "180+1"]
[Date "2021.12.07"]
[WhiteClock "0:01:04"]
[BlackClock "0:00:01"]

1. d4 {[%clk 0:03:00]}  Nf6 {[%clk 0:02:58]} 2. c4 {[%clk 0:03:01]}  g6 {[%clk 0:02:58]} 3. Nc3 {[%clk 0:03:01]}  Bg7 {[%clk 0:02:57]} 4. e4 {[%clk 0:03:00]}  d6 {[%clk 0:02:57]} 5. Be2 {[%clk 0:03:01]}  O-O {[%clk 0:02:55]} 6. Be3 {[%clk 0:03:01]}  c5 {[%clk 0:02:55]} 7. dxc5 {[%clk 0:03:01]}  dxc5 {[%clk 0:02:55]} 8. e5 {[%clk 0:03:01]}  Nfd7 {[%clk 0:02:53]} 9. f4 {[%clk 0:03:01]}  Nc6 {[%clk 0:02:54]} 10. Nf3 {[%clk 0:03:02]}  b6 {[%clk 0:02:44]} 11. O-O {[%clk 0:03:01]}  Bb7 {[%clk 0:02:44]} 12. Qe1 {[%clk 0:02:57]}  Qc8 {[%clk 0:01:53]} 13. Rd1 {[%clk 0:02:53]}  Rd8 {[%clk 0:01:46]} 14. Qh4 {[%clk 0:02:49]}  Nf8 {[%clk 0:01:36]} 15. Nd5 {[%clk 0:02:48]}  Ne6 {[%clk 0:01:35]} 16. Nxe7+ {[%clk 0:02:27]}  Nxe7 {[%clk 0:01:36]} 17. Qxe7 {[%clk 0:02:28]}  Re8 {[%clk 0:01:21]} 18. Qh4 {[%clk 0:02:26]}  Qc7 {[%clk 0:00:53]} 19. Rd2 {[%clk 0:02:15]}  Bc6 {[%clk 0:00:43]} 20. Rfd1 {[%clk 0:02:13]}  Bf8 {[%clk 0:00:42]} 21. Qg3 {[%clk 0:02:10]}  Ng7 {[%clk 0:00:40]} 22. Bf2 {[%clk 0:01:44]}  Nf5 {[%clk 0:00:33]} 23. Qh3 {[%clk 0:01:44]}  Rad8 {[%clk 0:00:29]} 24. Bh4 {[%clk 0:01:32]}  Nxh4 {[%clk 0:00:28]} 25. Qxh4 {[%clk 0:01:33]}  Be7 {[%clk 0:00:25]} 26. Qf2 {[%clk 0:01:32]}  Rxd2 {[%clk 0:00:24]} 27. Rxd2 {[%clk 0:01:32]}  Rd8 {[%clk 0:00:23]} 28. Qe1 {[%clk 0:01:31]}  Rxd2 {[%clk 0:00:20]} 29. Qxd2 {[%clk 0:01:32]}  Qd7 {[%clk 0:00:20]} 30. Qxd7 {[%clk 0:01:22]}  Bxd7 {[%clk 0:00:21]} 31. Kf2 {[%clk 0:01:22]}  Be6 {[%clk 0:00:19]} 32. Nd2 {[%clk 0:01:19]}  Kg7 {[%clk 0:00:12]} 33. Bf3 {[%clk 0:01:12]}  a6 {[%clk 0:00:13]} 34. b3 {[%clk 0:01:11]}  b5 {[%clk 0:00:13]} 35. Bd5 {[%clk 0:01:10]}  h6 {[%clk 0:00:11]} 36. Bxe6 {[%clk 0:01:08]}  fxe6 {[%clk 0:00:12]} 37. Kf3 {[%clk 0:01:08]}  g5 {[%clk 0:00:12]} 38. fxg5 {[%clk 0:01:06]}  hxg5 {[%clk 0:00:12]} 39. Ne4 {[%clk 0:01:05]}  Kg6 {[%clk 0:00:13]} 40. Kg4 {[%clk 0:01:04]}  bxc4 {[%clk 0:00:05]} 41. bxc4 {[%clk 0:01:04]}  a5 {[%clk 0:00:01]} 42. a4 {[%clk 0:01:04]} 1-0


[Site "https://www.chess.com"]

[Event "Titled Tuesday Blitz December 7 2021"]
[White "Maly, Alexey"]
[Black "Goryachkina, Aleksandra"]
[WhiteFideId "14103184"]
[BlackFideId "4147103"]
[WhiteElo "2294"]
[BlackElo "2441"]
[Result "1/2-1/2"]
[Round "06"]
[TimeControl "180+1"]
[Date "2021.12.07"]
[WhiteClock "0:02:59"]
[BlackClock "0:02:28"]

1. d4 {[%clk 0:03:00]}  Nf6 {[%clk 0:02:59]} 2. c4 {[%clk 0:03:01]}  e6 {[%clk 0:02:58]} 3. Nf3 {[%clk 0:03:01]}  b6 {[%clk 0:02:57]} 4. g3 {[%clk 0:03:01]}  Bb7 {[%clk 0:02:55]} 5. Bg2 {[%clk 0:03:01]}  Be7 {[%clk 0:02:55]} 6. O-O {[%clk 0:03:01]}  O-O {[%clk 0:02:55]} 7. b3 {[%clk 0:03:01]}  d5 {[%clk 0:02:41]} 8. Nbd2 {[%clk 0:03:01]}  c5 {[%clk 0:02:38]} 9. Bb2 {[%clk 0:03:01]}  Nbd7 {[%clk 0:02:38]} 10. Rc1 {[%clk 0:03:01]}  Rc8 {[%clk 0:02:37]} 11. e3 {[%clk 0:03:01]}  cxd4 {[%clk 0:02:35]} 12. Nxd4 {[%clk 0:03:01]}  Nc5 {[%clk 0:02:32]} 13. Qe2 {[%clk 0:03:01]}  dxc4 {[%clk 0:02:28]} 14. Bxb7 {[%clk 0:02:59]}  Nxb7 {[%clk 0:02:28]} 15. Nxc4 {[%clk 0:02:59]} 1/2-1/2


[Site "https://www.chess.com"]

[Event "Titled Tuesday Blitz December 7 2021"]
[White "Mezentsev, Ivan"]
[Black "Romero Ruscalleda, Josep"]
[WhiteFideId "13706195"]
[BlackFideId "2231859"]
[WhiteElo "2295"]
[BlackElo "2321"]
[Result "1-0"]
[Round "06"]
[TimeControl "180+1"]
[Date "2021.12.07"]
[WhiteClock "0:00:31"]
[BlackClock "0:01:06"]

1. e4 {[%clk 0:03:00]}  g6 {[%clk 0:03:00]} 2. d4 {[%clk 0:03:00]}  Bg7 {[%clk 0:03:00]} 3. Nc3 {[%clk 0:03:00]}  d6 {[%clk 0:03:01]} 4. Be3 {[%clk 0:02:59]}  a6 {[%clk 0:03:01]} 5. Qd2 {[%clk 0:02:59]}  b5 {[%clk 0:03:01]} 6. f3 {[%clk 0:02:57]}  Nd7 {[%clk 0:03:01]} 7. h4 {[%clk 0:02:53]}  h5 {[%clk 0:03:00]} 8. Nh3 {[%clk 0:02:50]}  e6 {[%clk 0:02:57]} 9. Ng5 {[%clk 0:02:43]}  Qe7 {[%clk 0:02:57]} 10. a4 {[%clk 0:02:38]}  b4 {[%clk 0:02:56]} 11. Nd1 {[%clk 0:02:35]}  a5 {[%clk 0:02:55]} 12. Nf2 {[%clk 0:02:26]}  Ba6 {[%clk 0:02:51]} 13. Bxa6 {[%clk 0:02:19]}  Rxa6 {[%clk 0:02:51]} 14. b3 {[%clk 0:02:12]}  Nh6 {[%clk 0:02:43]} 15. O-O {[%clk 0:02:07]}  f6 {[%clk 0:02:43]} 16. Ngh3 {[%clk 0:02:06]}  Nf7 {[%clk 0:02:43]} 17. Rac1 {[%clk 0:01:58]}  O-O {[%clk 0:02:42]} 18. Nf4 {[%clk 0:01:47]}  Kh7 {[%clk 0:02:36]} 19. c3 {[%clk 0:01:33]}  c5 {[%clk 0:02:22]} 20. cxb4 {[%clk 0:01:27]}  cxd4 {[%clk 0:02:21]} 21. Bxd4 {[%clk 0:01:26]}  e5 {[%clk 0:02:21]} 22. Nd5 {[%clk 0:01:26]}  Qe6 {[%clk 0:02:16]} 23. Be3 {[%clk 0:01:22]}  axb4 {[%clk 0:02:15]} 24. Nxb4 {[%clk 0:01:18]}  Raa8 {[%clk 0:02:15]} 25. Nd5 {[%clk 0:01:17]}  Rab8 {[%clk 0:02:03]} 26. b4 {[%clk 0:01:16]}  f5 {[%clk 0:02:01]} 27. Nh3 {[%clk 0:01:15]}  f4 {[%clk 0:01:58]} 28. Bf2 {[%clk 0:01:15]}  Nf6 {[%clk 0:01:54]} 29. Rc7 {[%clk 0:01:04]}  Nxd5 {[%clk 0:01:51]} 30. Rxf7 {[%clk 0:01:01]}  Kg8 {[%clk 0:01:33]} 31. Rxf8+ {[%clk 0:00:58]}  Bxf8 {[%clk 0:01:31]} 32. exd5 {[%clk 0:00:58]}  Qd7 {[%clk 0:01:30]} 33. b5 {[%clk 0:00:55]}  Be7 {[%clk 0:01:30]} 34. Ng5 {[%clk 0:00:52]}  Bd8 {[%clk 0:01:28]} 35. Qd3 {[%clk 0:00:49]}  Kg7 {[%clk 0:01:26]} 36. Ne6+ {[%clk 0:00:47]}  Kf7 {[%clk 0:01:26]} 37. Rc1 {[%clk 0:00:47]}  Ra8 {[%clk 0:01:21]} 38. Rc4 {[%clk 0:00:35]}  Kf6 {[%clk 0:01:13]} 39. Qxg6+ {[%clk 0:00:32]}  Kxg6 {[%clk 0:01:12]} 40. Nf8+ {[%clk 0:00:32]}  Kf6 {[%clk 0:01:12]} 41. Nxd7+ {[%clk 0:00:32]}  Ke7 {[%clk 0:01:12]} 42. Nb6 {[%clk 0:00:32]}  Rb8 {[%clk 0:01:06]} 43. a5 {[%clk 0:00:31]} 1-0


[Site "https://www.chess.com"]

[Event "Titled Tuesday Blitz December 7 2021"]
[White "Narayanan, Srinath"]
[Black "Ferreira, Vitor Hugo Vieira"]
[WhiteFideId "5018420"]
[BlackFideId "2119765"]
[WhiteElo "2472"]
[BlackElo "2216"]
[Result "1-0"]
[Round "06"]
[TimeControl "180+1"]
[Date "2021.12.07"]
[WhiteClock "0:00:20"]
[BlackClock "0:00:04"]

1. Nf3 {[%clk 0:03:00]}  Nf6 {[%clk 0:02:59]} 2. e3 {[%clk 0:03:01]}  d5 {[%clk 0:02:58]} 3. c4 {[%clk 0:03:01]}  c6 {[%clk 0:02:58]} 4. b3 {[%clk 0:03:02]}  Bg4 {[%clk 0:02:58]} 5. Bb2 {[%clk 0:03:02]}  e6 {[%clk 0:02:58]} 6. Be2 {[%clk 0:03:03]}  Nbd7 {[%clk 0:02:58]} 7. Nc3 {[%clk 0:03:03]}  Bd6 {[%clk 0:02:58]} 8. Qc2 {[%clk 0:03:04]}  O-O {[%clk 0:02:58]} 9. h3 {[%clk 0:03:03]}  Bh5 {[%clk 0:02:58]} 10. d4 {[%clk 0:03:00]}  Qe7 {[%clk 0:02:57]} 11. a3 {[%clk 0:03:00]}  a5 {[%clk 0:02:56]} 12. e4 {[%clk 0:02:59]}  dxe4 {[%clk 0:02:54]} 13. Nxe4 {[%clk 0:03:00]}  Nxe4 {[%clk 0:02:55]} 14. Qxe4 {[%clk 0:03:01]}  Bg6 {[%clk 0:02:55]} 15. Qe3 {[%clk 0:03:01]}  Rfe8 {[%clk 0:02:53]} 16. O-O {[%clk 0:03:00]}  e5 {[%clk 0:02:53]} 17. Rfe1 {[%clk 0:02:57]}  e4 {[%clk 0:02:48]} 18. Nd2 {[%clk 0:02:54]}  f5 {[%clk 0:02:44]} 19. c5 {[%clk 0:02:43]}  Bc7 {[%clk 0:02:44]} 20. Bc4+ {[%clk 0:02:44]}  Kh8 {[%clk 0:02:44]} 21. Qe2 {[%clk 0:02:44]}  f4 {[%clk 0:02:39]} 22. b4 {[%clk 0:02:33]}  Qg5 {[%clk 0:02:37]} 23. Qg4 {[%clk 0:02:28]}  Qe7 {[%clk 0:02:09]} 24. d5 {[%clk 0:02:24]}  Nf6 {[%clk 0:01:32]} 25. Bxf6 {[%clk 0:02:04]}  Qxf6 {[%clk 0:01:31]} 26. d6 {[%clk 0:02:05]}  Bd8 {[%clk 0:01:25]} 27. b5 {[%clk 0:02:03]}  Qc3 {[%clk 0:01:13]} 28. Qxf4 {[%clk 0:01:58]}  Bf6 {[%clk 0:01:07]} 29. bxc6 {[%clk 0:01:51]}  bxc6 {[%clk 0:01:03]} 30. Ra2 {[%clk 0:01:42]}  Rf8 {[%clk 0:00:45]} 31. Qe3 {[%clk 0:01:38]}  Qe5 {[%clk 0:00:38]} 32. Nxe4 {[%clk 0:01:03]}  Bxe4 {[%clk 0:00:37]} 33. Qxe4 {[%clk 0:01:03]}  Qxc5 {[%clk 0:00:38]} 34. Rd1 {[%clk 0:01:01]}  Rae8 {[%clk 0:00:32]} 35. Qd3 {[%clk 0:00:58]}  Rd8 {[%clk 0:00:28]} 36. d7 {[%clk 0:00:57]}  Bh4 {[%clk 0:00:25]} 37. Rdd2 {[%clk 0:00:45]}  Bg5 {[%clk 0:00:20]} 38. Re2 {[%clk 0:00:42]}  Bf4 {[%clk 0:00:18]} 39. Rac2 {[%clk 0:00:38]}  Qb6 {[%clk 0:00:11]} 40. g3 {[%clk 0:00:36]}  Bb8 {[%clk 0:00:11]} 41. Kg2 {[%clk 0:00:31]}  Qc7 {[%clk 0:00:10]} 42. Be6 {[%clk 0:00:31]}  Ba7 {[%clk 0:00:08]} 43. Bg4 {[%clk 0:00:20]}  Bb8 {[%clk 0:00:08]} 44. Rc5 {[%clk 0:00:18]}  Ba7 {[%clk 0:00:07]} 45. Rh5 {[%clk 0:00:18]}  h6 {[%clk 0:00:06]} 46. Rf5 {[%clk 0:00:18]}  Rxf5 {[%clk 0:00:05]} 47. Bxf5 {[%clk 0:00:19]}  Bb6 {[%clk 0:00:06]} 48. Re8+ {[%clk 0:00:19]}  Rxe8 {[%clk 0:00:04]} 49. dxe8=Q# {[%clk 0:00:20]} 1-0


[Site "https://www.chess.com"]